bitfinex/quotes_ETHUSD_20240718
["timestamp","ask_amount","ask_price","bid_price","bid_amount"]
[1721318158829,2.94683,3393.5,3392.4,2.94775]
[1721318159033,2.2837,3393.6,3392.5,2.94767]
[1721318159236,2.2837,3393.6,3392.6,2.94757]
[1721318159404,2.2837,3393.6,3392.4,2.9477]
[1721318159832,2.2837,3393.6,3392.6,2.94753]
[1721318160435,2.2837,3393.6,3392.7,0.04978086]
[1721318161292,7.28,3394.0,3392.9,2.94732]
[1721318161431,7.28,3394.0,3392.8,2.9970864]
[1721318161631,7.28,3394.0,3392.9,2.94732]
[1721318162007,7.28,3394.0,3393.2,2.94705]
[1721318162205,15.30595,3394.5,3393.0,3.06740597]
[1721318162206,19.64,3394.5,3393.0,0.04960597]
[1721318162447,22.58602,3394.5,3393.3,0.04944649]
[1721318162615,22.58602,3394.5,3393.1,2.94714]
[1721318162815,22.58602,3394.5,3393.4,0.04933952]
[1721318163153,2.94664,3393.7,3393.5,0.04928637]
[1721318163447,2.94656,3393.8,3392.6,2.94753]
[1721318163815,2.94646,3393.9,3392.8,2.94741]
[1721318164013,2.94655,3393.8,3392.7,2.99721167]
[1721318164251,2.94655,3393.8,3392.7,2.9475]
[1721318164466,2.94655,3393.8,3392.8,0.0496585]
[1721318164753,2.94664,3393.7,3392.8,0.0496585]
[1721318164939,2.94653,3393.9,3392.8,0.0496585]
[1721318165143,2.94615,3394.3,3392.4,2.4678]
[1721318165144,2.94656,3393.8,3392.6,2.94753]
[1721318165339,2.94673,3393.6,3392.3,2.94781]
[1721318165539,2.94673,3393.6,3392.3,2.94778]
[1721318165540,2.94695,3393.4,3392.3,2.94778]
[1721318165738,2.94673,3393.6,3392.3,2.94778]
[1721318165923,2.94686,3393.5,3392.5,2.94765]
[1721318166329,2.94686,3393.5,3392.6,0.04968049]
[1721318166525,7.28,3393.9,3392.6,0.04968049]
[1721318166725,7.28,3393.9,3392.6,0.10861335]
[1721318166911,7.28,3393.9,3392.9,2.94732]
[1721318167115,7.28,3393.9,3392.6,0.05893286]
[1721318167116,7.28,3393.9,3393.0,2.94719]
[1721318167355,7.28,3394.3,3392.9,0.05893186]
[1721318167513,7.28,3394.3,3393.5,2.94675]
[1721318167720,7.28,3394.3,3393.6,2.9467]
[1721318167914,7.28,3394.3,3393.6,2.99585117]
[1721318168354,10.22573,3394.8,3393.8,2.94652]
[1721318168560,10.22573,3394.8,3393.7,2.94662]
[1721318168729,10.22573,3394.8,3393.7,2.94656]
[1721318168931,10.22573,3394.8,3393.5,2.94677]
[1721318169254,10.22573,3394.8,3393.8,2.94653]
[1721318169551,10.22573,3394.8,3393.0,0.55]
[1721318169552,2.94586,3394.6,3393.5,2.94673]
[1721318169939,2.94586,3394.6,3393.6,0.04905638]
[1721318170144,5.94577,3394.7,3393.7,2.9466]
[1721318170361,5.94577,3394.7,3393.0,3.49723]
[1721318170362,2.94585,3394.6,3393.6,2.94671]
[1721318170655,3.0,3394.7,3393.6,2.94671]
[1721318170858,2.94589,3394.6,3393.4,2.94687]
[1721318171016,5.94578,3394.7,3393.7,0.04900324]
[1721318171358,2.94599,3394.5,3393.8,0.0489501]
[1721318171862,3.0,3394.7,3393.8,2.94647]
[1721318172154,3.0,3394.7,3393.6,2.94663]
[1721318172355,2.94592,3394.6,3393.9,0.04889696]
[1721318172576,2.94608,3394.4,3393.7,0.04900324]
[1721318172861,3.0,3394.7,3393.0,2.94722]
[1721318173018,5.89292,3393.9,3393.8,0.0489501]
[1721318173223,2.94669,3393.7,3392.4,2.94772]
[1721318173445,2.94678,3393.6,3392.5,2.94762]
[1721318173722,2.94685,3393.5,3392.5,2.99726118]
[1721318174570,2.94685,3393.5,3392.5,0.04964118]
[1721318174865,2.94708,3393.2,3392.5,0.04964118]
[1721318175053,2.94708,3393.2,3392.2,2.94788]
[1721318175256,3.0,3393.4,3392.6,0.049588]
[1721318175573,3.0,3393.4,3392.7,0.04953482]
[1721318175574,2.9469,3393.4,3392.7,0.04953482]
[1721318175767,2.94709,3393.2,3392.7,0.04953482]
[1721318175970,5.3888,3393.6,3392.0,2.3526]
[1721318176261,5.3888,3393.6,3392.8,0.04948165]
[1721318176262,2.94686,3393.5,3392.8,0.04948165]
[1721318176492,3.0,3393.4,3392.0,2.3526]
[1721318176696,2.94672,3393.6,3392.0,2.3526]
[1721318176911,3.0,3394.0,3392.0,2.3526]
[1721318176912,3.0,3393.5,3392.2,2.94787]
[1721318177107,2.94695,3393.4,3392.1,2.99784393]
[1721318177260,2.94695,3393.4,3392.4,2.94776]
[1721318177460,2.94695,3393.4,3392.2,2.99772457]
[1721318177461,2.94698,3393.3,3392.2,2.99772457]
[1721318177661,2.94698,3393.3,3392.5,0.04969501]
[1721318177959,2.94698,3393.3,3392.3,2.94784]
[1721318178300,3.0,3394.0,3392.6,0.04964183]
[1721318178301,2.94681,3393.5,3392.6,0.04964183]
[1721318178461,5.9469,3393.4,3392.3,2.94779]
[1721318178661,5.9469,3393.4,3392.1,2.94798]
[1721318178907,2.94709,3393.2,3392.1,2.94794]
[1721318179219,2.94709,3393.2,3391.9,2.94815]
[1721318179220,2.94734,3392.9,3392.2,0.04985457]
[1721318179506,2.94734,3392.9,3391.9,2.94815]
[1721318179661,2.94734,3392.9,3392.3,0.04980138]
[1721318179863,2.94751,3392.7,3391.7,8.8966]
[1721318180057,5.89473,3392.9,3391.8,2.94826]
[1721318180281,2.9472,3393.1,3391.9,2.94819]
[1721318180474,2.3565,3393.2,3391.8,0.05006735]
[1721318180475,2.3565,3393.2,3392.3,2.9478]
[1721318180712,2.94729,3393.0,3392.4,0.04974819]
[1721318180923,2.3565,3393.2,3392.3,2.94779]
[1721318181233,8.30359,3393.2,3392.2,2.94791]
[1721318181386,8.30359,3393.2,3392.4,0.04974819]
[1721318181582,8.30359,3393.2,3392.2,2.94791]
[1721318181922,8.30359,3393.2,3392.5,0.04969501]
[1721318182106,8.30359,3393.2,3392.2,2.94791]
[1721318182318,8.30359,3393.2,3392.3,0.04980138]
[1721318182491,2.9472,3393.1,3392.3,0.04980138]
[1721318182821,2.9472,3393.1,3392.0,2.94808]
[1721318182989,5.3565,3393.2,3392.4,0.04974819]
[1721318183319,2.94712,3393.2,3392.0,2.94807]
[1721318183528,2.94716,3393.1,3392.0,2.94807]
[1721318183727,2.94716,3393.1,3392.1,2.99791776]
[1721318184024,2.94712,3393.2,3392.1,2.99791776]
[1721318184025,2.94724,3393.0,3392.1,2.99791776]
[1721318184191,2.94724,3393.0,3392.1,0.04990776]
[1721318184391,3.0,3393.5,3392.0,2.9481]
[1721318184392,2.94733,3392.9,3392.0,2.9481]
[1721318184606,3.0,3393.5,3392.2,0.04985457]
[1721318184607,2.94694,3393.4,3392.2,0.04985457]
[1721318184916,2.9471,3393.2,3392.2,0.04985457]
[1721318185116,2.94724,3393.0,3392.2,0.04985457]
[1721318185321,2.9471,3393.2,3392.2,0.04985457]
[1721318185322,2.94757,3392.7,3392.2,0.04985457]
[1721318185481,2.94762,3392.6,3391.5,2.94848]
[1721318185689,2.94762,3392.6,3392.3,0.04999229]
[1721318185690,2.94773,3392.5,3392.3,0.04999229]
[1721318185994,2.94762,3392.6,3391.6,2.94845]
[1721318186198,10.28,3393.0,3392.4,0.0499391]
[1721318186378,10.28,3393.0,3391.9,2.94815]
[1721318186379,2.94733,3392.9,3391.9,2.94815]
[1721318186727,3.0,3393.0,3392.5,0.04986819]
[1721318186911,5.89424,3393.2,3392.1,2.94802]
[1721318186912,3.0,3393.1,3392.3,2.94784]
[1721318187079,3.0,3393.1,3392.6,0.04981501]
[1721318187281,3.0,3393.1,3392.3,2.94784]
[1721318187715,2.94691,3393.4,3392.4,0.04992009]
[1721318187918,9.5705,3393.6,3392.7,2.94748]
[1721318188121,7.28,3393.6,3392.5,2.94764]
[1721318188296,2.94685,3393.5,3392.5,2.94764]
[1721318188493,2.94685,3393.5,3392.6,0.04981733]
[1721318188728,2.94707,3393.2,3392.6,0.04981733]
[1721318189224,2.94707,3393.2,3392.7,0.04972826]
[1721318189428,2.94694,3393.4,3392.3,2.94785]
[1721318189600,2.94704,3393.3,3392.8,0.04968278]
[1721318189798,2.94709,3393.2,3392.1,2.94798]
[1721318190106,2.94716,3393.1,3392.9,0.04955475]
[1721318190416,2.94704,3393.3,3392.1,2.94798]
[1721318190622,2.94704,3393.3,3393.0,0.04950799]
[1721318190829,2.94704,3393.3,3392.3,2.94784]
[1721318191029,2.94707,3393.2,3393.1,0.04945482]
[1721318191200,2.94716,3393.1,3392.1,2.94795]
[1721318191401,2.94729,3393.0,3391.9,5.89628]
[1721318191728,2.94747,3392.8,3392.2,0.04993341]
[1721318192024,5.4955,3393.1,3392.3,0.04988022]
[1721318192224,2.94775,3392.5,3391.4,5.92718183]
[1721318192431,2.9476,3392.6,3392.4,0.04982575]
[1721318192591,2.9476,3392.6,3391.6,2.94838]
[1721318192934,2.94724,3393.0,3391.9,2.94818]
[1721318193223,2.94724,3393.0,3392.0,0.05007697]
[1721318193537,2.94724,3393.0,3391.8,2.9482]
[1721318193738,2.94724,3393.0,3392.1,0.05001352]
[1721318193888,2.94724,3393.0,3391.9,0.05011991]
[1721318194199,2.94743,3392.8,3392.0,0.05006671]
[1721318194527,2.94724,3393.0,3391.8,2.94824]
[1721318194738,2.4955,3393.1,3392.3,2.94784]
[1721318194942,2.94717,3393.1,3392.2,2.94788]
[1721318195108,2.94717,3393.1,3392.0,2.94807]
[1721318195328,2.94734,3392.9,3392.1,0.05002377]
[1721318195752,2.94734,3392.9,3391.9,6.44631]
[1721318195957,7.28,3393.3,3391.9,0.55]
[1721318196173,7.28,3393.3,3392.6,2.94754]
[1721318196352,4.15710837,3393.9,3393.0,2.94715]
[1721318196353,1.21060837,3393.9,3393.0,2.94715]
[1721318196515,2.94637,3394.0,3393.0,2.94715]
[1721318196714,2.94637,3394.0,3393.1,0.04943816]
[1721318196967,8.49060837,3394.5,3393.0,0.05893069]
[1721318197145,8.49060837,3394.5,3393.5,2.94675]
[1721318197146,7.28,3394.5,3393.5,2.94675]
[1721318197349,2.94608,3394.4,3393.3,2.94696]
[1721318197657,10.22602,3394.5,3393.4,0.04927485]
[1721318197867,2.94609,3394.4,3393.4,0.04927485]
[1721318198021,2.94611,3394.3,3393.2,2.94706]
[1721318198223,2.94611,3394.3,3393.5,0.04912559]
[1721318198444,2.94643,3394.0,3392.8,2.94735]
[1721318198617,7.28,3394.5,3393.6,0.04907244]
[1721318198618,2.94655,3393.8,3393.6,0.04907244]
[1721318198813,2.94655,3393.8,3392.6,2.94758]
[1721318199054,2.94655,3393.8,3393.7,0.0490193]
[1721318199213,2.94655,3393.8,3392.8,2.94739]
[1721318199429,2.94637,3394.0,3393.7,0.0490193]
[1721318199655,2.9462,3394.2,3393.0,2.94715]
[1721318199858,3.0,3394.1,3393.8,0.04896616]
[1721318200015,2.94605,3394.4,3393.2,2.94701]
[1721318200221,7.28,3394.5,3393.9,0.04888482]
[1721318200464,7.28,3394.5,3392.7,0.55]
[1721318200465,10.22594,3394.5,3393.5,2.94672]
[1721318200772,10.22594,3394.5,3394.0,0.0488304]
[1721318200773,7.28,3394.5,3394.0,0.0488304]
[1721318201060,7.28,3394.5,3393.7,2.94657]
[1721318201268,7.28,3394.5,3394.1,0.04873755]
[1721318201415,7.28,3394.5,3393.7,2.94657]
[1721318201623,7.28,3394.5,3394.2,0.04868442]
[1721318201964,19.64,3395.2,3394.3,2.94604]
[1721318202120,2.3628,3395.3,3394.3,0.0486313]
[1721318202577,2.94599,3394.5,3393.4,2.94683]
[1721318202858,2.94594,3394.5,3394.4,0.0485564]
[1721318203061,2.94634,3394.1,3393.0,2.94718]
[1721318203240,2.2615,3394.5,3392.5,2.94761]
[1721318203241,2.94677,3393.6,3392.5,2.94761]
[1721318203560,3.47210837,3394.5,3392.5,2.94765]
[1721318203561,2.94681,3393.5,3392.5,2.94765]
[1721318204118,2.9469,3393.4,3392.4,2.94776]
[1721318204356,1.21060837,3394.2,3392.6,2.94756]
[1721318204357,2.94669,3393.7,3392.6,2.94756]
[1721318204518,1.21060837,3394.2,3392.8,2.94741]
[1721318204729,4.51809466,3394.4,3393.0,2.94719]
[1721318204730,3.0,3394.1,3393.0,2.94719]
[1721318204958,2.94634,3394.1,3392.8,2.94735]
[1721318205260,2.94634,3394.1,3392.2,2.4971]
[1721318205261,2.94647,3393.9,3392.7,2.94744]
[1721318205560,2.94647,3393.9,3392.4,2.94773]
[1721318205561,2.94682,3393.5,3392.9,0.04935357]
[1721318205857,2.94694,3393.4,3393.0,0.0493004]
[1721318206071,2.94694,3393.4,3392.4,2.94773]
[1721318206273,2.947,3393.3,3393.1,0.04924724]
[1721318206423,2.94694,3393.4,3392.3,2.94785]
[1721318206619,2.94698,3393.3,3393.2,0.04919408]
[1721318206827,2.94717,3393.1,3392.1,2.948]
[1721318207433,0.11070969,3393.0,3392.1,2.948]
[1721318207634,3.05794969,3393.0,3392.0,2.9481]
[1721318207849,2.94724,3393.0,3391.9,5.94814]
[1721318208049,2.94707,3393.2,3392.0,3.49805]
[1721318208259,3.11071403,3393.1,3391.5,0.60793183]
[1721318208563,3.11071403,3393.1,3391.2,2.3596]
[1721318208564,2.94759,3392.6,3391.6,2.94845]
[1721318209060,3.0,3393.2,3391.6,2.94845]
[1721318209263,2.94747,3392.8,3391.8,2.94823]
[1721318209439,0.11071162,3392.7,3391.8,2.94823]
[1721318209634,2.94747,3392.8,3391.8,2.94823]
[1721318209845,0.11071296,3392.7,3391.6,2.9484]
[1721318210057,2.94768,3392.5,3391.6,2.9484]
[1721318210357,2.94768,3392.5,3391.4,2.94856]
[1721318210566,2.94778,3392.4,3391.4,2.94856]
[1721318210737,2.94777,3392.4,3391.4,2.94856]
[1721318210935,2.94761,3392.6,3391.6,2.9484]
[1721318211150,5.21938,3392.7,3391.7,2.94837]
[1721318211353,0.11077774,3392.6,3391.8,2.94823]
[1721318211523,2.94755,3392.7,3391.6,5.89675]
[1721318211738,2.94755,3392.7,3391.6,2.94837]
[1721318212146,2.94767,3392.5,3391.6,2.94837]
[1721318212348,2.94767,3392.5,3391.0,2.94895]
[1721318212349,2.9479,3392.3,3391.0,2.94895]
[1721318212548,2.94802,3392.1,3391.2,2.94875]
[1721318213030,2.9479,3392.3,3391.2,2.94872]
[1721318213659,2.9479,3392.3,3391.2,2.94875]
[1721318213869,2.94798,3392.2,3391.2,2.94875]
[1721318214162,2.94814,3392.0,3391.0,2.94897]
[1721318214325,2.94821,3391.9,3390.8,2.94912]
[1721318214529,2.94832,3391.8,3390.8,2.94912]
[1721318214756,2.94839,3391.7,3390.7,0.1477146]
[1721318215065,2.94839,3391.7,3390.7,3.0969446]
[1721318215263,2.94846,3391.6,3390.7,0.1477146]
[1721318215477,2.94839,3391.7,3390.7,0.1477146]
[1721318215478,2.94856,3391.5,3390.7,0.1477146]
[1721318215635,2.94869,3391.4,3390.7,0.1477146]
[1721318216029,2.94878,3391.3,3390.7,0.1477146]
[1721318216273,2.94863,3391.4,3390.7,0.0977146]
[1721318216724,2.94872,3391.3,3390.7,0.0977146]
[1721318217140,2.94863,3391.4,3390.7,0.0977146]
[1721318217373,2.94886,3391.2,3390.7,0.0977146]
[1721318217967,2.94903,3391.0,3390.7,0.0977146]
[1721318218167,2.94901,3391.0,3390.7,0.0977146]
[1721318218974,5.8983,3390.8,3390.7,0.0977146]
[1721318219366,8.8983,3390.8,3390.7,0.0977146]
[1721318220168,3.0,3390.8,3390.7,0.0977146]
[1721318220379,5.94915,3390.8,3390.7,0.0977146]
[1721318220672,8.8983,3390.8,3390.7,0.0977146]
[1721318223304,8.1623,3390.8,3390.7,0.0977146]
[1721318223455,11.1623,3390.8,3390.7,0.0977146]
[1721318224198,14.11145,3390.8,3390.7,0.0977146]
[1721318226252,5.264,3390.8,3390.7,0.0977146]
[1721318226453,3.0,3390.9,3390.7,0.0977146]
[1721318226796,5.94913,3390.9,3390.7,0.0977146]
[1721318226943,2.94915,3390.8,3390.7,0.0977146]
[1721318227142,3.0,3390.9,3390.7,0.0977146]
[1721318227389,2.4491,3391.4,3390.7,0.0977146]
[1721318227390,2.94874,3391.3,3390.7,0.0977146]
[1721318227673,2.4491,3391.4,3390.7,0.0977146]
[1721318227874,7.28,3391.7,3390.7,0.0977146]
[1721318228190,2.94854,3391.5,3390.7,0.0977146]
[1721318228362,2.94881,3391.2,3390.7,0.0977146]
[1721318228677,2.94881,3391.2,3390.8,0.05131332]
[1721318228678,8.19561,3390.9,3390.8,0.05131332]
[1721318228979,2.94915,3390.8,3390.7,0.0977146]
[1721318229381,5.8983,3390.8,3390.7,0.0977146]
[1721318229744,2.94915,3390.8,3390.7,0.0977146]
[1721318230087,7.28,3391.5,3390.7,0.0977146]
[1721318230088,2.9488,3391.2,3390.7,0.0977146]
[1721318230286,2.9488,3391.2,3390.7,0.14909656]
[1721318230448,2.94869,3391.4,3390.7,0.0977146]
[1721318230644,2.94864,3391.4,3390.7,0.0977146]
[1721318230848,9.5887,3391.5,3390.7,0.0977146]
[1721318230849,2.94872,3391.3,3390.7,0.0977146]
[1721318231252,2.94898,3391.0,3390.7,0.0977146]
[1721318231900,7.28,3391.5,3390.7,0.0977146]
[1721318232203,2.94875,3391.3,3390.7,0.0977146]
[1721318232498,2.9488,3391.2,3390.7,0.0977146]
[1721318232706,7.28,3391.5,3390.8,0.04954417]
[1721318232913,7.28,3391.5,3391.0,2.94897]
[1721318233196,7.28,3392.2,3391.2,2.9488]
[1721318233395,2.94787,3392.3,3391.3,3.00767628]
[1721318233713,10.22752,3392.7,3391.3,2.48897677]
[1721318234012,10.22752,3392.7,3391.6,2.94845]
[1721318234013,7.28,3392.7,3391.6,2.94845]
[1721318234163,7.28,3392.7,3391.7,0.05895937]
[1721318234370,10.2275,3392.7,3391.6,2.94845]
[1721318234580,10.2275,3392.7,3391.8,0.04888674]
[1721318234789,10.2275,3392.7,3391.7,0.04893995]
[1721318234980,3.0,3392.6,3391.9,0.04883354]
[1721318235188,3.0,3392.6,3391.8,0.04888674]
[1721318235409,5.94759,3392.6,3392.0,0.04878034]
[1721318235624,2.3386,3393.0,3392.0,2.9481]
[1721318235762,7.28,3393.1,3392.1,2.94802]
[1721318235962,7.28,3393.1,3392.2,2.94793]
[1721318236201,7.28,3393.1,3392.3,2.94783]
[1721318236646,7.28,3393.1,3392.4,3.0552179]
[1721318236780,7.28,3393.1,3392.5,2.94767]
[1721318236980,7.28,3393.1,3392.4,0.04852031]
[1721318237287,7.28,3393.6,3392.7,2.94743]
[1721318237489,2.4782,3394.0,3392.6,0.04836541]
[1721318237735,7.28,3394.1,3392.3,2.4815]
[1721318237736,10.22629,3394.1,3393.0,2.94723]
[1721318238018,10.22629,3394.1,3392.9,2.94732]
[1721318238019,2.94643,3394.0,3392.9,2.94732]
[1721318238233,2.94643,3394.0,3392.7,0.04831224]
[1721318238234,2.94663,3393.7,3393.1,0.04809957]
[1721318238594,7.28,3394.1,3392.3,5.42931]
[1721318238789,2.94698,3393.3,3393.2,0.04804641]
[1721318238987,7.28,3394.1,3391.8,2.94826]
[1721318238988,2.4879,3393.6,3391.8,2.94826]
[1721318239224,2.4879,3393.6,3391.7,2.3903]
[1721318239225,2.9474,3392.9,3391.7,5.33865]
[1721318239525,2.94747,3392.8,3391.9,0.04873773]
[1721318239832,2.94747,3392.8,3391.7,5.33865]
[1721318239833,2.94747,3392.8,3392.0,0.04860282]
[1721318240124,2.94747,3392.8,3391.7,5.33865]
[1721318240125,2.94751,3392.7,3391.7,2.3903]
[1721318240347,7.28,3393.4,3392.1,0.04854962]
[1721318240543,7.28,3393.4,3391.2,2.3754]
[1721318240544,2.3075,3392.6,3391.2,2.3754]
[1721318240836,2.94808,3392.1,3391.2,2.3754]
[1721318241129,2.94789,3392.3,3391.3,0.04904422]
[1721318241130,2.94812,3392.0,3391.3,0.04904422]
[1721318241331,2.94781,3392.4,3391.3,2.99775422]
[1721318241649,2.94776,3392.4,3391.4,2.94857]
[1721318242056,2.94785,3392.3,3391.2,5.32415]
[1721318242549,2.94785,3392.3,3391.3,2.99775422]
[1721318242765,2.94774,3392.5,3391.3,2.99775422]
[1721318242915,7.28,3392.6,3391.7,2.94831]
[1721318243346,7.28,3392.6,3391.8,0.04877816]
[1721318243915,2.94791,3392.3,3391.8,0.04877816]
[1721318244177,2.94767,3392.5,3391.3,2.94869]
[1721318244326,2.94767,3392.5,3391.9,0.04872496]
[1721318244660,2.94767,3392.5,3391.3,2.94869]
[1721318245014,2.94767,3392.5,3392.0,0.04846603]
[1721318245216,2.94753,3392.7,3391.4,2.94862]
[1721318245428,19.64,3393.1,3391.3,2.94868]
[1721318245665,19.64,3393.1,3392.0,2.94805]
[1721318245874,19.64,3393.1,3391.5,0.04873205]
[1721318245875,19.64,3393.1,3392.3,2.94777]
[1721318246024,19.64,3393.1,3392.3,2.9478]
[1721318246231,19.64,3393.1,3392.4,2.99600327]
[1721318246462,19.64,3393.1,3392.5,2.94766]
[1721318246750,2.3735,3393.9,3392.5,0.04820009]
[1721318246751,7.28,3393.6,3392.5,0.04820009]
[1721318246964,5.32002,3393.9,3392.5,0.04820009]
[1721318247128,2.94657,3393.8,3392.8,2.94735]
[1721318247331,5.32002,3393.9,3392.6,2.94752]
[1721318247332,2.94672,3393.6,3392.6,2.94752]
[1721318247679,10.22634,3394.1,3392.1,2.3258]
[1721318247960,10.22634,3394.1,3393.2,2.94706]
[1721318248272,2.94612,3394.3,3393.2,2.94706]
[1721318248433,2.94612,3394.3,3393.3,0.04777474]
[1721318248633,2.94612,3394.3,3392.6,2.94755]
[1721318249038,2.94629,3394.1,3393.1,2.9471]
[1721318249240,2.94663,3393.8,3392.6,2.94751]
[1721318249552,2.94688,3393.5,3393.2,0.0478279]
[1721318249720,2.94688,3393.5,3392.5,2.94767]
[1721318250029,2.94688,3393.5,3393.3,0.04766239]
[1721318250230,2.94688,3393.5,3392.5,2.94767]
[1721318250562,2.94649,3393.9,3393.4,0.04760924]
[1721318250762,2.94669,3393.7,3392.7,2.94748]
[1721318251055,2.94674,3393.6,3392.5,2.9476]
[1721318251267,2.94674,3393.6,3392.3,2.94782]
[1721318251268,2.94692,3393.4,3392.8,0.04766572]
[1721318251469,2.94675,3393.6,3392.8,0.04766572]
[1721318251626,2.94657,3393.8,3392.4,2.94771]
[1721318251627,2.94681,3393.5,3392.4,2.94771]
[1721318252136,2.94703,3393.3,3392.5,0.04783928]
[1721318252551,2.94703,3393.3,3392.2,2.94791]
[1721318252733,2.94703,3393.3,3392.6,0.04780269]
[1721318253061,3.0,3394.1,3392.6,2.94751]
[1721318253062,2.94663,3393.7,3392.6,2.94751]
[1721318253220,2.94646,3393.9,3392.7,0.04774952]
[1721318253421,2.94672,3393.6,3392.7,0.04774952]
[1721318253624,2.94666,3393.7,3392.7,0.04774952]
[1721318253866,3.0,3393.8,3392.8,2.9474]
[1721318254161,2.94669,3393.7,3392.8,0.04770528]
[1721318254522,2.94681,3393.5,3392.8,0.04770528]
[1721318254724,2.94681,3393.5,3392.5,2.94761]
[1721318254976,2.94681,3393.5,3392.9,0.04761383]
[1721318255135,2.94681,3393.5,3392.5,2.94761]
[1721318255478,2.94669,3393.7,3392.7,2.94742]
[1721318255479,2.94666,3393.7,3392.7,2.94742]
[1721318255835,2.94666,3393.7,3392.8,0.04767593]
[1721318256583,2.94673,3393.6,3392.8,0.04767593]
[1721318256939,2.94673,3393.6,3392.6,2.94757]
[1721318257176,3.0,3393.8,3392.9,0.04762276]
[1721318257357,3.0,3394.3,3393.0,2.94718]
[1721318257572,3.0,3394.3,3393.1,2.94714]
[1721318257739,3.0,3394.3,3393.1,2.99464494]
[1721318258581,3.0,3394.3,3393.2,2.94706]
[1721318259078,3.0,3394.3,3393.3,2.99437225]
[1721318259968,7.28,3394.4,3393.8,2.9465]
[1721318260168,9.7333,3395.0,3394.0,2.94632]
[1721318260367,7.28,3395.0,3394.0,3.00523916]
[1721318260580,7.28,3395.0,3394.1,0.04692627]
[1721318261279,2.9456,3394.9,3394.1,0.04692627]
[1721318261485,3.0,3394.8,3393.8,2.94651]
[1721318261837,3.0,3394.8,3393.6,2.94669]
[1721318262038,3.0,3394.9,3393.7,0.04695003]
[1721318262276,2.9466,3393.8,3393.0,2.3837]
[1721318262487,2.4757,3394.8,3393.0,2.3837]
[1721318262488,2.94644,3394.0,3393.0,2.3837]
[1721318262641,2.94648,3393.9,3393.0,2.3837]
[1721318262843,2.94648,3393.9,3393.1,0.0472766]
[1721318263250,7.28,3394.3,3393.1,0.0472766]
[1721318263251,2.94663,3393.7,3393.1,0.0472766]
[1721318263479,2.4462,3393.8,3391.8,2.3595]
[1721318263644,2.94698,3393.3,3393.2,0.04578344]
[1721318263864,11.84094,3393.3,3393.2,0.04578344]
[1721318264066,2.94761,3392.6,3391.5,2.94851]
[1721318264306,3.0,3393.3,3393.2,0.04425732]
[1721318264451,2.94751,3392.7,3391.5,2.94847]
[1721318264649,2.94733,3392.9,3391.6,2.94838]
[1721318264885,3.0,3392.8,3391.7,0.05895535]
[1721318265089,3.0,3392.8,3391.8,0.05895567]
[1721318265259,3.0,3392.8,3391.8,0.10248228]
[1721318265777,3.0,3392.8,3391.8,0.04352661]
[1721318265947,2.94727,3393.0,3391.8,0.04352661]
[1721318266154,2.94727,3393.0,3391.8,2.99180661]
[1721318266155,2.94742,3392.8,3391.8,2.99180661]
[1721318266587,2.9475,3392.7,3391.8,0.04352661]
[1721318266886,2.9475,3392.7,3391.6,2.94845]
[1721318267089,2.9475,3392.7,3391.9,0.04347341]
[1721318267390,2.9475,3392.7,3391.6,2.94845]
[1721318267891,2.9475,3392.7,3391.7,2.99193981]
[1721318268063,5.94734,3392.9,3391.8,2.94828]
[1721318268254,5.94734,3392.9,3391.8,0.04352661]
[1721318268255,2.94756,3392.7,3391.8,0.04352661]
[1721318268463,3.0,3392.9,3391.2,2.3595]
[1721318268464,2.94785,3392.3,3391.2,2.3595]
[1721318268753,2.9479,3392.3,3391.9,0.04347341]
[1721318268955,3.0,3392.9,3391.0,3.407]
[1721318268956,2.94646,3393.9,3391.6,2.94842]
[1721318269192,2.9474,3392.9,3391.7,2.9483]
[1721318269371,2.9474,3392.9,3391.7,0.04357981]
[1721318269690,2.94772,3392.5,3391.4,2.94863]
[1721318269902,2.94772,3392.5,3391.8,0.04352661]
[1721318270076,2.94772,3392.5,3391.4,2.94863]
[1721318270278,2.94777,3392.4,3391.9,0.04347341]
[1721318270526,5.35306,3393.1,3391.3,2.4589]
[1721318270527,2.94785,3392.3,3391.3,2.4589]
[1721318270705,2.94785,3392.3,3392.0,0.04342021]
[1721318270913,2.94785,3392.3,3391.3,2.4589]
[1721318271095,2.94785,3392.3,3392.1,0.04336701]
[1721318271301,2.94785,3392.3,3391.3,2.4589]
[1721318271531,2.94785,3392.3,3392.2,0.04331382]
[1721318271718,2.94785,3392.3,3391.3,2.4589]
[1721318271899,2.94785,3392.3,3392.2,0.04331382]
[1721318272095,2.94785,3392.3,3391.3,2.4589]
[1721318272301,2.94785,3392.3,3392.2,0.04331382]
[1721318272570,2.94785,3392.3,3391.3,2.94871]
[1721318273035,2.9477,3392.5,3391.6,2.94844]
[1721318273404,2.9477,3392.5,3391.7,0.04357981]
[1721318274343,2.94791,3392.3,3391.0,3.407]
[1721318274541,2.94761,3392.6,3391.8,0.04352661]
[1721318274865,2.9482,3391.9,3390.8,5.32807]
[1721318275021,2.9482,3391.9,3390.9,2.94905]
[1721318275667,2.9482,3391.9,3390.8,2.379]
[1721318276347,2.9482,3391.9,3390.8,5.32808]
[1721318276722,2.9482,3391.9,3390.9,2.94906]
[1721318276922,2.94835,3391.8,3390.8,5.32815]
[1721318277166,2.94839,3391.7,3390.8,2.94915]
[1721318277474,7.28,3392.1,3390.7,0.0977146]
[1721318277765,2.94883,3391.2,3390.7,0.0977146]
[1721318278674,5.94812,3392.0,3390.7,0.0977146]
[1721318278873,2.94861,3391.5,3390.7,0.0977146]
[1721318279174,3.0,3392.0,3390.7,0.0977146]
[1721318279175,2.94832,3391.8,3390.7,0.0977146]